bitfinex-derivatives/quotes_ETHF0:USTF0_20250403
["timestamp","ask_amount","ask_price","bid_price","bid_amount"]
[1743646251251,1.4247,1827.6,1827.5,4.6369]
[1743646256563,5.2307,1827.6,1827.4,0.00820277]
[1743646256757,0.87549,1827.5,1827.4,0.00820277]
[1743646257064,2.27199,1827.5,1827.4,0.00820277]
[1743646258962,0.87573,1827.0,1826.9,4.6996]
[1743646259161,3.806,1827.1,1826.9,4.6996]
[1743646259354,2.27733,1827.0,1826.8,0.7036]
[1743646259555,2.27733,1827.0,1826.9,3.2078]
[1743646259760,1.4016,1827.0,1826.9,3.2078]
[1743646259960,3.806,1827.1,1826.9,4.6996]
[1743646260364,1.4016,1827.0,1826.9,4.6996]
[1743646261067,3.9477,1827.4,1826.9,4.6996]
[1743646261272,4.5459,1827.4,1827.1,3.2078]
[1743646261566,1.4529,1827.5,1827.2,1.5231]
[1743646261760,3.2078,1827.6,1827.2,1.5231]
[1743646261761,3.806,1827.6,1827.3,3.2078]
[1743646261961,0.00820277,1827.7,1827.5,4.08327]
[1743646262164,0.00820277,1827.7,1827.6,2.39854]
[1743646262572,1.4529,1828.2,1827.9,0.87529]
[1743646262871,4.68109,1828.4,1828.1,3.2078]
[1743646263073,6.13399,1828.4,1828.2,1.5231]
[1743646263564,1.4529,1828.4,1828.2,1.5231]
[1743646263870,3.81420277,1828.5,1828.3,3.2078]
[1743646264065,3.81420277,1828.5,1828.4,1.3829]
[1743646265269,0.00820277,1828.5,1828.4,1.3829]
[1743646266670,1.4784,1828.9,1828.4,7.17940818]
[1743646266865,1.4784,1828.9,1828.5,3.2078]
[1743646267069,2.35323,1828.9,1828.6,1.4185]
[1743646267570,1.4784,1828.9,1828.6,1.4185]
[1743646267771,1.48660277,1828.9,1828.6,1.4185]
[1743646268568,5.29160277,1828.9,1828.6,1.4185]
[1743646269168,0.87487,1828.8,1828.6,1.4185]
[1743646269475,5.29160277,1828.9,1828.2,3.2078]
[1743646269476,0.87496,1828.6,1828.2,3.2078]
[1743646269677,1.4579,1828.5,1828.3,1.4374]
[1743646270168,2.33292,1828.5,1828.2,3.2078]
[1743646270566,1.4579,1828.5,1828.2,3.2078]
[1743646270777,2.33292,1828.5,1828.2,3.2078]
[1743646271370,1.4579,1828.5,1828.1,1.44560277]
[1743646272179,1.4579,1828.5,1828.2,3.2078]
[1743646272674,4.68008,1828.4,1828.2,3.2078]
[1743646272879,2.30991,1828.3,1828.2,3.2078]
[1743646273273,1.4348,1828.3,1828.2,3.2078]
[1743646273677,2.30991,1828.3,1828.2,3.2078]
[1743646274485,0.87516,1828.2,1828.1,0.00820277]
[1743646274672,2.30996,1828.2,1828.1,0.00820277]
[1743646274977,6.28966,1828.2,1828.1,0.00820277]
[1743646275877,0.87525,1828.0,1827.9,3.2078]
[1743646276171,3.805,1828.0,1827.9,3.2078]
[1743646279276,3.2078,1828.5,1827.9,5.7078]
[1743646279483,0.00820277,1828.9,1828.3,3.2078]
[1743646279484,1.4922,1828.6,1828.3,3.2078]
[1743646279683,1.4922,1828.6,1828.4,1.4789]
[1743646279883,2.36717,1828.6,1828.4,1.4789]
[1743646280184,1.4922,1828.6,1828.4,1.4789]
[1743646280681,2.36717,1828.6,1828.4,1.4789]
[1743646281283,1.4922,1828.6,1828.4,1.4789]
[1743646282489,2.36718,1828.6,1828.4,1.4789]
[1743646285190,0.87502,1828.5,1828.3,3.2078]
[1743646285393,1.3969,1828.4,1828.2,1.4612]
[1743646285592,1.3969,1828.4,1828.3,3.2078]
[1743646285995,1.3969,1828.4,1828.2,1.4612]
[1743646286697,2.27197,1828.4,1828.2,1.4612]
[1743646286886,2.27197,1828.4,1828.3,3.2078]
[1743646287092,2.27197,1828.4,1828.2,1.4612]
[1743646288592,5.2009,1828.4,1828.0,0.6934]
[1743646288793,0.8752,1828.1,1828.0,2.1997]
[1743646288997,0.87517,1828.2,1828.0,2.1997]
[1743646289198,0.8752,1828.1,1828.0,2.1997]
[1743646290107,0.87525,1828.0,1827.9,3.2078]
[1743646290403,2.31655,1828.0,1827.9,3.2078]
[1743646292397,0.8753,1827.9,1827.8,0.00820277]
[1743646292592,3.0841,1827.9,1827.8,0.00820277]
[1743646293005,2.2088,1827.9,1827.8,0.00820277]
[1743646293405,3.0841,1827.9,1827.8,0.00820277]
[1743646293702,1.5074,1827.9,1827.8,0.00820277]
[1743646295303,2.3827,1827.9,1827.8,0.00820277]
[1743646295800,1.5074,1827.9,1827.8,0.00820277]
[1743646296202,4.22923791,1828.5,1827.8,5.71600277]
[1743646296406,4.22923791,1828.5,1828.1,4.08298]
[1743646296597,4.22923791,1828.5,1828.2,2.39744]
[1743646296802,5.65813791,1828.5,1828.2,3.13214]
[1743646297105,4.6367,1828.5,1828.2,3.13213]
[1743646297300,4.6367,1828.5,1828.2,2.257]
[1743646297301,7.0118,1828.5,1828.2,2.257]
[1743646297507,7.0118,1828.5,1828.2,3.13214]
[1743646298709,3.804,1828.5,1828.2,3.13214]
[1743646299201,3.804,1828.5,1828.3,4.0829]
[1743646299407,3.804,1828.5,1828.4,1.4754]
[1743646300099,6.07312,1828.5,1828.3,3.2078]
[1743646300301,6.07312,1828.5,1828.3,4.6766]
[1743646301007,6.07312,1828.5,1828.3,3.2078]
[1743646301008,0.87506,1828.4,1828.3,3.2078]
[1743646301200,1.3941,1828.4,1828.3,3.2078]
[1743646303207,2.26916,1828.4,1828.3,3.2078]
[1743646304314,0.87513,1828.3,1828.1,3.2078]
[1743646304605,5.2926,1828.2,1828.1,3.2078]
[1743646304803,6.16776,1828.2,1827.9,0.7328]
[1743646305106,0.87523,1828.1,1827.8,3.21600277]
[1743646305310,1.4886,1828.0,1827.8,3.21600277]
[1743646305501,1.4886,1828.0,1827.9,1.4995]
[1743646306406,2.36385,1828.0,1827.9,1.4995]
[1743646308910,0.8753,1827.9,1827.8,3.21600277]
[1743646309210,6.1995,1827.9,1827.8,3.21600277]
[1743646310413,3.804,1827.9,1827.8,3.21600277]
[1743646314014,3.804,1827.9,1827.8,4.09135277]
[1743646314613,2.39537,1828.2,1827.8,4.09133277]
[1743646314614,4.67921,1828.1,1827.8,4.09133277]
[1743646314815,0.87525,1828.0,1827.9,1.5078]
[1743646315407,2.34505,1828.0,1827.9,1.5078]
[1743646316217,2.34505,1828.0,1827.8,3.21600277]
[1743646316413,1.4698,1828.0,1827.8,3.21600277]
[1743646316809,1.4698,1828.0,1827.9,1.4191]
[1743646317219,6.81135544,1838.8,1827.9,1.4191]
[1743646317220,4.8069,1829.1,1827.9,1.4191]
[1743646317511,9.099,1829.8,1827.9,1.4191]
[1743646317512,0.87388,1830.9,1830.1,0.87422]
[1743646317703,0.87384,1831.0,1830.9,0.02749182]
[1743646317910,3.2078,1831.3,1830.9,0.02749182]
[1743646318109,3.18030818,1831.3,1830.8,3.2078]
[1743646318311,3.959,1831.2,1830.8,3.2078]
[1743646318507,3.96720277,1831.2,1830.9,1.41300277]
[1743646319114,0.00820277,1831.2,1830.9,1.41300277]
[1743646319709,3.2078,1831.0,1830.9,1.41300277]
[1743646319915,3.96120277,1831.2,1830.9,1.41300277]
[1743646320413,5.47330277,1831.2,1830.9,1.41300277]
[1743646320610,1.52030277,1831.2,1830.9,1.41300277]
[1743646320814,1.52030277,1831.2,1831.1,3.2078]
[1743646320815,0.00820277,1831.2,1831.1,3.2078]
[1743646321015,0.00820277,1831.2,1831.1,4.6126]
[1743646324221,0.00820277,1831.2,1831.1,1.4048]
[1743646325522,0.88192277,1831.2,1830.9,3.21600277]
[1743646325721,0.87382,1831.0,1830.9,0.00820277]
[1743646326226,2.37352,1831.0,1830.9,0.00820277]
[1743646328618,2.37352,1831.0,1830.3,3.2078]
[1743646328619,2.18467,1830.9,1830.3,3.2078]
[1743646328824,0.8741,1830.4,1830.3,3.2078]
[1743646329218,3.929,1830.5,1830.3,3.2078]
[1743646329219,1.4214,1830.5,1830.3,3.2078]
[1743646329524,0.00820277,1831.2,1830.4,5.79650818]
[1743646329724,0.00820277,1831.2,1830.7,3.2078]
[1743646330026,5.39257,1830.9,1830.2,0.00820277]
[1743646330225,0.87415,1830.3,1830.2,0.00820277]
[1743646330428,4.83315,1830.3,1830.2,0.00820277]
[1743646330622,6.33145,1830.3,1830.2,0.00820277]
[1743646334631,6.32045,1830.3,1830.2,0.00820277]
[1743646334822,0.87434,1829.9,1829.8,3.2078]
[1743646335027,0.87442,1829.8,1829.6,1.4008]
[1743646335332,3.949,1829.9,1829.6,4.58110818]
[1743646335528,2.18518,1830.5,1829.8,3.2078]
[1743646335529,1.4641,1830.4,1829.8,3.2078]
[1743646335721,5.39260818,1830.4,1830.1,3.2078]
[1743646335921,3.96420277,1830.4,1830.2,1.4008]
[1743646336332,0.00820277,1830.4,1830.2,1.4008]
[1743646336742,0.00820277,1830.4,1830.3,3.2078]
[1743646336925,0.8739,1830.9,1830.4,0.87408]
[1743646337121,0.87396,1830.7,1830.6,3.2078]
[1743646337335,0.87396,1830.7,1830.5,4.6045]
[1743646337537,3.961,1830.7,1830.1,3.21600277]
[1743646337736,0.8742,1830.2,1830.1,1.40490277]
[1743646337938,4.8432,1830.2,1830.1,1.40490277]
[1743646338238,3.969,1830.2,1830.1,1.40490277]
[1743646338636,4.8432,1830.2,1830.1,1.40490277]
[1743646341135,3.969,1830.2,1830.1,4.61270277]
[1743646341437,0.88237277,1830.3,1830.1,4.61270277]
[1743646341637,3.96220277,1830.3,1830.2,1.5136]
[1743646342043,4.83635277,1830.3,1830.2,1.5136]
[1743646343138,6.35775277,1830.3,1830.2,1.5136]
[1743646343345,0.8742,1830.2,1830.1,0.00820277]
[1743646343732,5.6034,1830.2,1830.1,0.00820277]
[1743646346937,4.81637277,1830.3,1830.1,3.21600277]
[1743646347138,4.81637277,1830.3,1830.2,1.4638]
[1743646347343,4.81637277,1830.3,1830.2,2.6705096]
[1743646347635,4.81637277,1830.3,1830.2,4.0282889]
[1743646348442,0.88237277,1830.3,1830.2,4.0282889]
[1743646348635,0.88237277,1830.3,1830.2,4.67814419]
[1743646349035,0.88237277,1830.3,1830.2,4.0282889]
[1743646349638,0.88237277,1830.3,1830.2,2.5644889]
[1743646349846,0.88237277,1830.3,1830.2,2.0072733]
[1743646350037,2.25867277,1830.3,1830.2,0.77985824]
[1743646350643,2.96497277,1830.3,1830.2,0.77985824]
[1743646352445,2.96497277,1830.3,1830.2,2.20005824]
[1743646352837,2.96497277,1830.3,1830.2,0.77985824]
[1743646353837,2.96497277,1830.3,1830.1,0.00820277]
[1743646353838,0.8742,1830.2,1830.1,1e-08]
[1743646354043,0.8742,1830.2,1829.6,2.24964152]
[1743646354044,0.87444,1829.7,1829.6,2.24964152]
[1743646354243,4.80944,1829.7,1829.6,4.47529043]
[1743646354444,4.80944,1829.7,1829.6,6.44293463]
[1743646354644,4.80944,1829.7,1829.6,5.40038786]
[1743646355042,8.01724,1829.7,1829.6,1.77354536]
[1743646355344,11.23884,1829.7,1829.6,1.23093062]
[1743646355544,11.23884,1829.7,1829.5,0.00820277]
[1743646355545,0.87449,1829.6,1829.5,0.00820277]
[1743646355743,2.35049,1829.6,1829.5,0.00820277]
[1743646359243,2.35049,1829.6,1829.5,2.77e-06]
[1743646361636,0.87449,1829.6,1829.5,2.77e-06]
[1743646361841,4.78749,1829.6,1829.5,2.77e-06]
[1743646362248,6.23379,1829.6,1829.5,2.77e-06]
[1743646373056,2.32079,1829.6,1829.5,2.77e-06]
[1743646373244,6.19479,1829.6,1829.5,2.77e-06]
[1743646374555,2.32079,1829.6,1829.5,2.77e-06]
[1743646374756,6.19279,1829.6,1829.5,2.77e-06]
[1743646376957,2.32079,1829.6,1829.5,2.77e-06]
[1743646377160,6.18279,1829.6,1829.5,2.77e-06]
[1743646377761,4.73649,1829.6,1829.5,2.77e-06]
[1743646378566,6.20669,1829.6,1829.5,2.77e-06]
[1743646379161,6.20669,1829.6,1829.2,1.3821]
[1743646379162,0.87463,1829.3,1829.2,1.3821]
[1743646379366,7.93843,1829.3,1829.2,1.3821]
[1743646380263,4.73063,1829.3,1829.2,1.3821]
[1743646380466,7.93843,1829.3,1829.2,1.3821]
[1743646381065,4.73063,1829.3,1829.2,1.3821]
[1743646381567,4.73063,1829.3,1829.2,1.93854788]
[1743646382261,7.93843,1829.3,1829.2,1.93854788]
[1743646382467,4.73063,1829.3,1829.2,1.93866605]
[1743646385272,7.93843,1829.3,1829.2,1.93866605]
[1743646387674,7.93843,1829.3,1829.2,2.63476605]
[1743646388279,7.93843,1829.3,1829.2,3.39326605]
[1743646389378,7.93843,1829.3,1829.2,3.39479851]
[1743646390873,4.08243,1829.3,1829.2,3.39479851]
[1743646391077,7.0348,1829.7,1829.2,13.3316682]
[1743646391266,3.827,1829.7,1829.3,4.39691968]
[1743646391577,3.827,1829.7,1829.4,3.38035283]
[1743646391578,0.87451,1829.6,1829.4,3.38035283]
[1743646391779,0.87451,1829.6,1829.5,0.55809851]
[1743646391980,0.87451,1829.6,1829.5,2.74933166]
[1743646392177,4.70147,1829.7,1829.5,3.37967228]
[1743646392379,4.70147,1829.7,1829.6,0.55809851]
[1743646393081,3.827,1829.7,1829.6,1.27922299]
[1743646395380,4.70144,1829.7,1829.6,1.27922299]
[1743646395884,4.70144,1829.7,1829.6,0.55667918]
[1743646397379,4.70144,1829.7,1829.5,4.677]
[1743646397781,3.827,1829.7,1829.5,4.677]
[1743646398081,4.70144,1829.7,1829.5,4.677]
[1743646398289,4.70144,1829.7,1829.6,0.55622702]
[1743646398480,4.70144,1829.7,1829.6,1.2758596]
[1743646399391,7.90924,1829.7,1829.6,1.2758596]
[1743646399685,7.90924,1829.7,1829.6,0.71963258]
[1743646399985,0.87449,1829.6,1829.5,1.4692]
[1743646400185,2.37579,1829.6,1829.5,1.4692]
[1743646400586,0.87463,1829.3,1829.2,1.4546]
[1743646400786,4.67963,1829.3,1829.2,2.68172474]
[1743646402389,4.67963,1829.3,1829.2,1.98562474]
[1743646402590,4.67963,1829.3,1827.9,8.43850467]
[1743646402591,9.5128,1829.3,1827.9,8.43850467]
[1743646402803,9.5128,1829.3,1827.8,12.69043434]
[1743646402804,0.8753,1827.9,1827.8,12.69043434]
[1743646403082,0.87544,1827.6,1827.5,19.88888522]
[1743646403285,0.87541,1827.7,1827.5,19.88888522]
[1743646403479,3.977,1827.6,1827.5,19.88888522]
[1743646403790,3.98,1827.6,1827.5,19.88888522]
[1743646404286,3.98,1827.6,1827.4,0.00820277]
[1743646404781,4.85545,1827.6,1827.4,0.00820277]
[1743646405784,4.85545,1827.6,1827.4,2.12120277]
[1743646405984,0.87549,1827.5,1827.4,2.12120277]
[1743646406191,2.30467277,1827.8,1827.4,2.12120277]
[1743646406388,3.974,1827.6,1827.4,5.32900277]
[1743646406588,0.00820277,1827.8,1827.4,5.32900277]
[1743646406785,3.98120277,1827.8,1827.6,3.2078]
[1743646406988,3.98120277,1827.8,1827.7,2.1663]
[1743646407491,3.98120277,1827.8,1827.7,4.6663]
[1743646408792,3.98120277,1827.8,1827.7,2.1663]
[1743646410499,4.85655277,1827.8,1827.7,2.1663]
[1743646410792,0.00820277,1827.8,1827.7,5.54169]
[1743646410993,0.00820277,1827.8,1827.7,4.6663]
[1743646411194,0.00820277,1827.8,1827.7,2.1663]
[1743646412492,0.00820277,1827.8,1827.7,7.9903]
[1743646414195,0.00820277,1827.8,1827.7,8.86569]
[1743646414389,0.00820277,1827.8,1827.7,7.9903]
[1743646414594,0.00820277,1827.8,1827.7,8.86569]
[1743646418699,0.00820277,1827.8,1827.7,7.9903]
[1743646419106,0.88355277,1827.8,1827.7,7.9903]
[1743646419403,0.88355277,1827.8,1827.7,7.2738]
[1743646419596,0.00820277,1827.8,1827.7,7.2738]
[1743646419792,0.00820277,1827.8,1827.7,7.9927]
[1743646423402,0.87549,1827.5,1827.4,0.00820277]
[1743646423608,8.03129,1827.5,1827.4,2.77e-06]
[1743646423908,8.44536591,1827.5,1827.4,2.77e-06]
[1743646424803,10.94536591,1827.5,1827.4,2.77e-06]
[1743646428506,0.87582,1826.9,1826.5,5.3827]
[1743646428800,3.928,1826.9,1826.6,0.54795245]
[1743646429002,3.928,1826.9,1826.7,1.97185245]
[1743646429198,5.3448,1826.9,1826.8,0.54868254]
[1743646429404,6.2206,1826.9,1826.8,0.54868254]
[1743646431010,0.87583,1826.8,1826.7,1.4239]
[1743646431214,0.87583,1826.8,1826.7,1.97308754]
[1743646432810,0.87583,1826.8,1826.7,5.18088754]
[1743646433113,0.87583,1826.8,1826.7,5.18199831]
[1743646436611,0.87583,1826.8,1826.7,4.6317]
[1743646436811,0.87583,1826.8,1826.7,5.18140198]
[1743646437913,0.87583,1826.8,1826.7,5.18117723]
[1743646439203,0.00820277,1827.0,1826.7,5.18117723]
[1743646439407,0.00820277,1827.0,1826.8,1.25147723]
[1743646439703,0.00820277,1827.0,1826.9,2.01737723]
[1743646440213,0.88393277,1827.0,1826.9,2.01737723]
[1743646440414,0.88393277,1827.0,1826.9,1.4679]
[1743646440606,0.88393277,1827.0,1826.9,2.01723182]
[1743646440916,0.00820277,1827.0,1826.9,5.22503182]
[1743646441215,0.00820277,1827.0,1826.9,8.60081182]
[1743646441813,0.00820277,1827.0,1826.9,8.60075781]
[1743646443210,0.88393277,1827.0,1826.9,0.54927781]
[1743646444320,2.38713277,1827.0,1826.9,0.54927781]
[1743646445411,0.87578,1826.9,1826.8,0.702]
[1743646445617,1.5032,1826.9,1826.8,1.25192969]
[1743646445814,0.00820277,1827.0,1826.8,4.45972969]
[1743646446011,0.00820277,1827.0,1826.9,2.86430969]
[1743646446206,0.00820277,1827.0,1826.9,7.51331969]
[1743646446520,1.4013,1827.4,1827.2,0.87562]
[1743646446819,1.4013,1827.4,1827.3,1.98852969]
[1743646448118,0.00820277,1827.5,1827.3,2.86411969]
[1743646448318,0.00820277,1827.5,1827.4,2.86406969]
[1743646449021,0.00820277,1827.5,1827.4,6.07186969]
[1743646449210,0.00820277,1827.5,1827.4,6.07176518]
[1743646452821,0.00820277,1827.5,1827.4,5.52194]
[1743646453123,0.00820277,1827.5,1827.4,5.19690978]
[1743646454821,0.00820277,1827.5,1827.4,5.19715042]
[1743646455812,0.00820277,1827.5,1827.4,6.07269042]
[1743646456917,0.00820277,1827.5,1827.4,5.19715042]
[1743646458818,1.48190277,1827.5,1827.4,5.19715042]
[1743646460314,1.48190277,1827.5,1827.4,5.1973994]
[1743646461425,0.00820277,1827.5,1827.4,5.1973994]
[1743646461924,1.50360277,1827.5,1827.4,5.1973994]
[1743646462230,1.50360277,1827.5,1827.4,5.19750052]
[1743646464129,1.50360277,1827.5,1827.4,5.19755126]
[1743646465731,1.50360277,1827.5,1827.4,6.07309126]
[1743646466131,0.00820277,1827.5,1827.4,6.07309126]
[1743646466830,0.00820277,1827.5,1827.4,6.0731985]
[1743646467032,0.00820277,1827.5,1827.4,5.1976585]
[1743646467527,1.44820277,1827.5,1827.4,5.1976585]
[1743646467830,1.44820277,1827.5,1827.4,5.19781308]
[1743646468624,1.44820277,1827.5,1827.4,6.07335308]
[1743646468931,1.44820277,1827.5,1827.4,5.19781308]
[1743646471324,0.00820277,1827.5,1827.4,6.07335308]
[1743646471834,0.8754,1827.7,1827.4,9.84682308]
[1743646472032,1.5213,1827.8,1827.5,0.55141308]
[1743646472327,1.5213,1827.6,1827.4,7.85681]
[1743646472637,1.5213,1827.6,1827.5,1.42720737]
[1743646472835,1.5213,1827.6,1827.5,2.91950737]
[1743646473438,0.00820277,1827.7,1827.6,0.87544]
[1743646473734,0.00820277,1827.7,1827.6,4.63499745]
[1743646476641,0.00820277,1827.7,1827.6,5.00972272]
[1743646477438,0.00820277,1827.7,1827.6,4.63499745]
[1743646479040,0.00820277,1827.7,1827.6,4.63525799]
[1743646480638,3.2078,1828.5,1827.6,15.59526799]
[1743646480831,1.409,1828.2,1828.1,0.8752]
[1743646481036,1.409,1828.2,1828.1,6.10061799]
[1743646481240,1.409,1828.2,1828.1,4.63501799]
[1743646481743,1.409,1828.2,1828.1,3.75981799]
[1743646482332,2.28416,1828.2,1828.1,3.75981799]
[1743646482538,2.28416,1828.2,1828.1,0.55201799]
[1743646482842,3.01556,1828.2,1828.1,0.55201799]
[1743646487759,5.51556,1828.2,1828.1,0.55201799]
[1743646488457,0.8752,1828.1,1828.0,0.00820277]
[1743646488756,6.3376,1828.1,1828.0,0.55960258]
[1743646494165,6.3376,1828.1,1828.0,0.55993403]
[1743646497667,3.1298,1828.1,1828.0,0.00820277]
[1743646497863,3.1298,1828.1,1828.0,0.55996009]
[1743646499770,3.1298,1828.1,1828.0,0.56010878]
[1743646501173,6.3376,1828.1,1828.0,0.56010878]
[1743646501671,8.8376,1828.1,1828.0,0.53550047]
[1743646501871,2.18828,1827.9,1827.1,60.6728]
[1743646502070,2.18828,1827.9,1827.1,0.87568]
[1743646502071,4.08332,1827.5,1827.1,0.87568]
[1743646502269,1.3744,1827.4,1827.2,1.5142]
[1743646503272,0.87542,1827.7,1827.3,4.08337]
[1743646503573,1.3744,1827.7,1827.3,3.9672]
[1743646503768,0.87552,1827.5,1827.3,0.7594]
[1743646503967,2.32644,1827.4,1827.2,6.16321]
[1743646504170,1.4509,1827.4,1827.2,6.16321]
[1743646504478,0.87559,1827.3,1827.2,6.16321]
[1743646505173,1.4509,1827.4,1827.2,6.16321]
[1743646505174,2.32644,1827.4,1827.2,6.16321]
[1743646505370,0.87559,1827.3,1827.2,6.16321]
[1743646505569,2.32649,1827.3,1827.2,6.16321]
[1743646505970,2.32649,1827.3,1827.2,4.64901]
[1743646507173,0.87563,1827.2,1827.1,3.21600277]
[1743646507376,2.36623,1827.2,1827.1,3.21600277]
[1743646507774,1.4906,1827.2,1827.1,3.21600277]
[1743646507975,0.00820277,1827.3,1827.1,5.52117277]
[1743646508279,0.00820277,1827.3,1827.2,2.1655]
[1743646509778,0.00820277,1827.3,1827.2,3.04113]
[1743646510272,0.00820277,1827.3,1827.2,2.1655]
[1743646510677,0.88379277,1827.3,1827.2,2.1655]
[1743646511080,0.00820277,1827.3,1827.2,2.1655]
[1743646511277,0.88379277,1827.3,1827.2,2.1655]
[1743646511474,0.00820277,1827.3,1827.2,2.1655]
[1743646512079,0.88379277,1827.3,1827.2,2.1655]
[1743646512282,0.00820277,1827.3,1827.2,2.1655]
[1743646512475,0.88379277,1827.3,1827.2,2.1655]
[1743646513378,0.00820277,1827.3,1827.2,2.1655]
[1743646513777,0.00820277,1827.3,1827.2,3.58559392]
[1743646513980,0.00820277,1827.3,1827.2,6.08559392]
[1743646514282,0.00820277,1827.3,1827.2,9.89659392]
[1743646514473,2.38528,1827.8,1827.5,0.87549]
[1743646514672,2.38528,1827.8,1827.2,9.02096392]
[1743646514673,0.87539,1827.7,1827.6,1.27056392]
[1743646514873,1.5099,1827.8,1827.7,0.87539]
[1743646515082,0.8753,1827.9,1827.7,1.96556392]
[1743646515280,0.8753,1827.9,1827.8,0.54446392]
[1743646515787,0.8753,1827.9,1827.8,0.54431201]
[1743646517483,5.61268277,1828.0,1827.8,0.54431201]
[1743646517678,5.61268277,1828.0,1827.9,0.54431201]
[1743646519984,5.61268277,1828.0,1827.9,0.54433088]
[1743646521580,0.87549,1827.5,1827.3,3.2078]
[1743646521784,0.87547,1827.6,1827.3,3.2078]
[1743646521983,1.3736,1827.5,1827.3,4.7161]
[1743646523381,2.2491,1827.5,1827.3,4.7161]
[1743646523880,1.3736,1827.4,1827.3,4.7161]
[1743646524481,2.24914,1827.4,1827.3,3.2078]
[1743646524988,0.87563,1827.2,1827.1,0.00820277]
[1743646525588,0.87563,1827.2,1827.1,1.41040277]
[1743646526185,1.3862,1827.3,1827.1,1.41040277]
[1743646526385,3.81,1827.5,1827.3,0.87556]
[1743646526583,0.7058,1827.6,1827.4,1.4022]
[1743646526783,1.3862,1827.5,1827.4,1.4022]
[1743646530989,1.3862,1827.5,1827.4,2.27774]
[1743646531690,1.3862,1827.5,1827.4,1.4022]
[1743646532295,1.3862,1827.5,1827.4,2.27774]
[1743646533293,1.3862,1827.5,1827.4,1.4022]
[1743646533591,1.3862,1827.5,1827.4,1.94638724]
[1743646533989,1.3862,1827.5,1827.4,2.82192724]
[1743646534791,1.3862,1827.5,1827.4,1.94638724]
[1743646535492,2.26169,1827.5,1827.4,0.54418724]
[1743646535691,3.00189,1827.5,1827.4,0.54418724]
[1743646536086,0.87556,1827.4,1827.2,3.78063]
[1743646536387,1.484,1827.3,1827.2,6.98843]
[1743646536591,1.484,1827.3,1827.2,7.5328365]
[1743646537089,1.484,1827.3,1827.2,3.4494065]
[1743646537090,2.35959,1827.3,1827.2,3.4494065]
[1743646538588,2.35959,1827.3,1827.2,0.5444065]
[1743646539282,6.16959,1827.3,1827.2,0.5444065]
[1743646540494,1.484,1827.3,1827.2,1.4200365]
[1743646540799,1.484,1827.3,1827.2,2.8338365]
[1743646541989,4.5158,1827.6,1827.4,0.87554]
[1743646542192,4.5158,1827.6,1827.2,5.1660065]
[1743646542193,1.5063,1827.5,1827.3,3.01546]
[1743646542392,1.5063,1827.5,1827.4,1.95823948]
[1743646542893,2.38179,1827.5,1827.4,1.95823948]
[1743646543094,1.5063,1827.5,1827.4,1.95823948]
[1743646543285,1.5063,1827.5,1827.4,2.83377948]
[1743646546592,1.5063,1827.5,1827.4,0.54443948]
[1743646547997,1.5063,1827.5,1827.4,1.41997948]
[1743646548199,1.5063,1827.5,1827.4,2.89507948]
[1743646549999,3.2078,1827.7,1827.6,0.87544]
[1743646550197,4.685,1827.7,1827.6,0.54443948]
[1743646550399,5.56039,1827.7,1827.6,0.54443948]
[1743646551198,4.685,1827.7,1827.6,0.54443948]
[1743646551699,1.4772,1827.7,1827.6,0.54443948]
[1743646552397,1.4772,1827.7,1827.6,1.41987948]
[1743646552600,1.4772,1827.7,1827.6,0.54443948]
[1743646552601,5.56039,1827.7,1827.6,0.54443948]
[1743646552799,2.35259,1827.7,1827.6,0.54582099]
[1743646554200,5.56039,1827.7,1827.6,0.54582099]
[1743646554705,1.4772,1827.7,1827.6,0.54582099]
[1743646556693,1.4772,1827.7,1827.6,1.42126099]
[1743646556907,4.6334,1827.9,1827.8,0.87535]
[1743646557102,6.0407,1827.9,1827.8,0.54582099]
[1743646557303,6.916,1827.9,1827.8,0.54582099]
[1743646558303,6.0407,1827.9,1827.8,0.54539903]
[1743646559205,6.916,1827.9,1827.8,0.54539903]
[1743646560307,0.8754,1827.7,1827.4,10.15223]
[1743646560507,4.0832,1827.7,1827.5,0.54551663]
[1743646560808,1.399,1827.6,1827.5,0.87549]
[1743646561010,1.399,1827.6,1827.5,1.42096393]
[1743646561308,1.399,1827.6,1827.5,0.54547393]
[1743646561496,2.27444,1827.6,1827.5,0.54547393]
[1743646562609,4.77444,1827.6,1827.5,0.54547393]
[1743646563003,0.87563,1827.2,1827.1,0.00820277]
[1743646563311,7.89143,1827.2,1827.1,0.00820277]
[1743646563607,7.89143,1827.2,1827.1,0.55381493]
[1743646566512,7.0158,1827.2,1827.1,0.55381493]
[1743646567007,9.38583,1827.2,1827.1,0.55381493]
[1743646567408,8.5102,1827.2,1827.1,0.55381493]
[1743646567909,3.2078,1827.4,1827.1,0.55381493]
[1743646568209,3.34700213,1828.1,1827.1,0.55381493]
[1743646568210,3.2078,1827.7,1827.4,0.87552]
[1743646568415,1.4637,1827.6,1827.5,2.02971216]
[1743646568716,1.4637,1827.6,1827.5,2.90520216]
[1743646569009,3.2078,1827.7,1827.6,0.87544]
[1743646569208,3.2078,1827.7,1827.6,3.48915187]
[1743646569405,3.2078,1827.7,1827.6,4.36459187]
[1743646569711,3.2078,1827.7,1827.6,3.48915187]
[1743646570011,4.08319,1827.7,1827.6,0.54445187]
[1743646570213,7.89119,1827.7,1827.6,0.54445187]
[1743646570609,0.87559,1827.3,1827.1,0.71790277]
[1743646570910,0.87559,1827.3,1827.2,0.54469047]
[1743646571805,0.87559,1827.3,1827.2,0.54468173]
[1743646573618,2.36657,1827.4,1827.2,0.54468173]
[1743646573809,2.36657,1827.4,1827.3,0.54468173]
[1743646573810,2.36654,1827.4,1827.3,0.54468173]
[1743646574211,3.2078,1827.5,1827.3,0.54468173]
[1743646574412,4.08323,1827.7,1827.4,0.54468173]
[1743646574605,0.87544,1827.6,1827.5,0.54468173]
[1743646576317,0.87544,1827.6,1827.5,0.54464999]
[1743646576921,3.2078,1827.7,1827.5,0.54464999]
[1743646577125,3.2078,1827.7,1827.6,0.54464999]
[1743646579123,3.2078,1827.7,1827.6,1.98044999]
[1743646580026,0.00820277,1828.0,1827.6,1.98040663]
[1743646580225,0.00820277,1828.0,1827.8,0.87531]